bitfinex/quotes_SOLUSD_20250908
["timestamp","ask_amount","ask_price","bid_price","bid_amount"]
[1757290195356,75.39614547,206.07,206.06,1e-08]
[1757290196858,80.20666664,206.07,206.06,1e-08]
[1757290197736,42.08666664,206.07,206.06,1e-08]
[1757290198047,80.20666664,206.07,206.06,1e-08]
[1757290198860,42.08666664,206.07,206.06,1e-08]
[1757290199156,80.18666664,206.07,206.06,1e-08]
[1757290203969,42.08666664,206.07,206.06,1e-08]
[1757290204169,80.18666664,206.07,206.06,1e-08]
[1757290206577,80.15523829,206.07,206.06,1e-08]
[1757290209343,82.69128271,206.07,206.06,1e-08]
[1757290210162,82.75128271,206.07,206.06,1e-08]
[1757290210966,39.59559401,206.03,206.01,1e-08]
[1757290211179,41.64946733,206.02,206.01,1e-08]
[1757290211648,43.59333806,206.02,206.01,1e-08]
[1757290212273,62.74282974,206.02,206.01,1e-08]
[1757290219170,23.94282974,206.02,206.01,1e-08]
[1757290219488,62.74282974,206.02,206.01,1e-08]
[1757290219672,24.64282974,206.02,206.01,1e-08]
[1757290219985,62.74282974,206.02,206.01,1e-08]
[1757290220183,24.64282974,206.02,206.01,1e-08]
[1757290220365,62.74282974,206.02,206.01,1e-08]
[1757290220572,62.04282974,206.02,206.01,1e-08]
[1757290220779,23.94282974,206.02,206.01,1e-08]
[1757290220989,62.04282974,206.02,206.01,1e-08]
[1757290221291,23.94282974,206.02,206.01,1e-08]
[1757290221456,88.04282974,206.02,206.01,1e-08]
[1757290221852,62.04282974,206.02,206.01,1e-08]
[1757290222381,88.04282974,206.02,206.01,1e-08]
[1757290222961,88.02282974,206.02,206.01,1e-08]
[1757290223486,49.94282974,206.02,206.01,1e-08]
[1757290223662,88.02282974,206.02,206.01,1e-08]
[1757290224386,88.72282974,206.02,206.01,1e-08]
[1757290224575,62.72282974,206.02,206.01,1e-08]
[1757290226669,82.02282974,206.02,206.01,1e-08]
[1757290227878,82.08282974,206.02,206.01,1e-08]
[1757290228072,24.00282974,206.02,206.01,1e-08]
[1757290228471,62.08282974,206.02,206.01,1e-08]
[1757290228971,88.08282974,206.02,206.01,0.71000001]
[1757290229359,10.40723573,206.02,206.01,0.71000001]
[1757290229563,6.8577684,206.02,206.01,0.71000001]
[1757290229782,0.06,206.02,206.01,0.71000001]
[1757290229984,42.99389767,206.02,206.01,0.71000001]
[1757290230283,38.14,206.02,206.01,0.71000001]
[1757290230877,42.99389767,206.02,206.01,0.71000001]
[1757290231075,38.14,206.02,206.01,0.71000001]
[1757290231757,42.99389767,206.02,206.01,0.71000001]
[1757290232178,42.99389767,206.02,206.01,1e-08]
[1757290233186,42.99389767,206.02,206.01,0.71000001]
[1757290234597,56.58949168,206.02,206.01,1e-08]
[1757290235293,60.14746252,206.02,206.01,1e-08]
[1757290235969,22.06746252,206.02,206.01,1e-08]
[1757290236293,56.56949168,206.02,206.01,1e-08]
[1757290236592,58.51317349,206.02,206.01,1e-08]
[1757290237279,62.07269811,206.02,206.01,1e-08]
[1757290240892,48.4771041,206.02,206.01,0.72000001]
[1757290241671,48.4771041,206.02,206.01,1e-08]
[1757290244691,5.56320643,206.02,206.01,0.72000001]
[1757290244876,40.04368181,206.02,206.01,0.72000001]
[1757290245269,38.1,206.02,206.01,0.72000001]
[1757290247374,38.1,206.02,206.01,5.5741333]
[1757290247997,38.1,206.02,206.01,0.72000001]
[1757290252794,38.1,206.02,206.01,5.5741333]
[1757290252974,0.06,206.02,206.01,5.5741333]
[1757290253294,0.06,206.02,206.01,20.14395919]
[1757290253892,0.06,206.02,206.01,33.7395532]
[1757290255595,1e-08,206.02,206.01,62.8995532]
[1757290255799,1e-08,206.02,206.01,142.9995532]
[1757290260081,1e-08,206.05,206.04,68.75559401]
[1757290260304,1e-08,206.05,206.04,106.77559401]
[1757290260488,1e-08,206.05,206.04,107.49559401]
[1757290261801,1e-08,206.05,206.04,112.34902052]
[1757290262210,0.06,206.1,206.09,26.0]
[1757290262384,0.06,206.1,206.09,106.09999999]
[1757290262585,1e-08,206.1,206.09,149.575594]
[1757290263101,1e-08,206.1,206.09,189.5169175]
[1757290264892,1e-08,206.1,206.09,194.36916651]
[1757290266097,1e-08,206.1,206.09,114.26916652]
[1757290267505,1e-08,206.1,206.09,75.54916652]
[1757290267698,1e-08,206.1,206.09,49.54916652]
[1757290268104,1e-08,206.1,206.09,75.54916652]
[1757290269411,1e-08,206.1,206.09,50.22916652]
[1757290270518,1e-08,206.1,206.09,88.20916652]
[1757290271915,1e-08,206.1,206.09,168.30916651]
[1757290272324,1e-08,206.1,206.09,167.62916651]
[1757290272503,1e-08,206.1,206.09,168.30916651]
[1757290274224,1e-08,206.1,206.09,130.32916651]
[1757290274425,1e-08,206.1,206.09,168.30916651]
[1757290274719,1e-08,206.1,206.09,129.64916651]
[1757290274928,1e-08,206.1,206.09,167.62916651]
[1757290276921,1e-08,206.1,206.09,129.64916651]
[1757290277120,0.66000001,206.1,206.09,165.68784301]
[1757290277421,1e-08,206.1,206.09,165.68784301]
[1757290279111,1e-08,206.1,206.09,127.70784301]
[1757290280409,0.66000001,206.1,206.09,127.70784301]
[1757290281315,1e-08,206.1,206.09,127.70784301]
[1757290282408,1e-08,206.1,206.09,127.73784301]
[1757290283110,1e-08,206.1,206.09,129.67935496]
[1757290283616,1e-08,206.1,206.09,130.35935496]
[1757290286424,1e-08,206.1,206.09,129.67935496]
[1757290286632,1e-08,206.1,206.09,167.63935496]
[1757290286834,1e-08,206.1,206.09,127.73784301]
[1757290288922,1e-08,206.1,206.09,129.67944921]
[1757290289121,1e-08,206.1,206.09,127.73784301]
[1757290289733,1e-08,206.1,206.09,47.63784302]
[1757290295639,1e-08,206.1,206.09,127.73784301]
[1757290295947,0.67000001,206.1,206.09,127.73784301]
[1757290296521,1e-08,206.1,206.09,127.73784301]
[1757290297142,0.67000001,206.1,206.09,122.885594]
[1757290297342,0.67000001,206.1,206.09,80.12999999]
[1757290300130,0.67000001,206.1,206.09,98.57784301]
[1757290300339,1e-08,206.1,206.09,98.57784301]
[1757290302055,0.67000001,206.1,206.09,98.57784301]
[1757290302551,0.67000001,206.1,206.09,127.73784301]
[1757290302734,0.67000001,206.1,206.09,80.12999999]
[1757290304040,0.67000001,206.1,206.09,84.982249]
[1757290304425,1e-08,206.1,206.09,98.57784301]
[1757290304841,1e-08,206.1,206.09,99.29784301]
[1757290305054,1e-08,206.1,206.09,128.45784301]
[1757290305234,0.06,206.12,206.11,29.16]
[1757290306154,0.06,206.12,206.11,34.01177817]
[1757290306556,0.06,206.12,206.11,35.95319589]
[1757290307046,0.06,206.12,206.11,34.01177817]
[1757290308041,0.06,206.12,206.11,35.95319589]
[1757290309949,0.06,206.12,206.11,34.01177817]
[1757290310534,0.06,206.12,206.11,116.05319587]
[1757290310753,0.06,206.12,206.11,114.11177815]
[1757290310954,0.73,206.12,206.11,114.11177815]
[1757290311257,0.06,206.12,206.11,114.11177815]
[1757290311667,0.06,206.12,206.11,129.64869566]
[1757290314956,0.73,206.12,206.11,129.64869566]
[1757290315164,0.73,206.12,206.11,155.64869566]
[1757290315544,0.73,206.12,206.11,153.70737216]
[1757290319363,0.06,206.12,206.11,153.70737216]
[1757290323079,0.06,206.12,206.11,127.70737216]
[1757290323257,0.06,206.12,206.11,128.42737216]
[1757290323452,0.06,206.12,206.11,130.36869565]
[1757290324148,0.06,206.13,206.12,13.59559401]
[1757290324350,0.06,206.13,206.12,81.86074828]
[1757290324567,0.03872578,206.13,206.12,81.86074828]
[1757290324764,0.03872578,206.13,206.12,83.80188335]
[1757290324960,0.06,206.15,206.14,80.0612742]
[1757290325165,0.06,206.15,206.14,166.05304749]
[1757290325452,0.06,206.15,206.14,166.22794029]
[1757290326052,0.06,206.15,206.14,168.16898118]
[1757290326272,0.06,206.15,206.14,167.50898118]
[1757290326970,0.75,206.15,206.14,15.5366349]
[1757290327178,0.75,206.15,206.14,39.59559401]
[1757290328275,0.75,206.15,206.14,26.0]
[1757290328457,0.75,206.15,206.11,4.85158106]
[1757290328659,0.69,206.14,206.11,4.85158106]
[1757290328854,0.69,206.13,206.12,26.0]
[1757290329466,0.69,206.13,206.11,4.85158106]
[1757290329660,0.69,206.12,206.11,44.44717507]
[1757290331886,0.69,206.12,206.1,0.03]
[1757290335467,5.54170292,206.12,206.1,0.03]
[1757290336173,0.69,206.12,206.1,0.03]
[1757290336770,0.06,206.15,206.14,39.59559401]
[1757290337075,0.75,206.15,206.14,39.59559401]
[1757290338476,0.75,206.15,206.14,26.0]
[1757290339188,0.06,206.15,206.14,30.85107208]
[1757290339392,0.06,206.15,206.14,44.44666609]
[1757290339762,0.06,206.15,206.14,46.38798959]
[1757290341287,0.75,206.15,206.14,30.85107208]
[1757290343591,0.06,206.15,206.14,30.85107208]
[1757290344481,0.06,206.15,206.14,44.44666609]
[1757290344679,0.06,206.15,206.14,154.32794029]
[1757290345777,0.06,206.15,206.14,153.66794029]
[1757290346999,0.06,206.15,206.14,155.60907537]
[1757290347999,0.06,206.15,206.14,158.04815056]
[1757290348373,0.06,206.15,206.14,158.04815217]
[1757290352000,1e-08,206.15,206.14,167.80445937]
[1757290352178,1e-08,206.15,206.14,168.46445937]
[1757290353078,1e-08,206.17,206.16,29.16]
[1757290353383,1e-08,206.17,206.16,93.29603815]
[1757290353595,1e-08,206.17,206.16,93.95603815]
[1757290353772,1e-08,206.17,206.16,95.8967965]
[1757290354198,1e-08,206.17,206.16,100.74739797]
[1757290354397,1e-08,206.17,206.16,100.26233783]
[1757290356609,0.06,206.22,206.21,68.75559401]
[1757290356784,0.06,206.22,206.21,151.255945]
[1757290357184,0.06,206.22,206.21,153.19642091]
[1757290357384,0.06,206.22,206.21,157.07399231]
[1757290359100,0.06,206.22,206.21,158.04584625]
[1757290360805,0.06,206.22,206.21,158.73584625]
[1757290361017,0.06,206.22,206.21,158.04584625]
[1757290363322,0.78,206.22,206.21,158.04584625]
[1757290363502,0.06,206.22,206.21,158.04584625]
[1757290363699,0.78,206.22,206.21,158.04584625]
[1757290363900,0.06,206.22,206.21,158.04584625]
[1757290364614,0.78,206.22,206.21,7.28850214]
[1757290365108,0.78,206.22,206.21,28.4390768]
[1757290365630,0.78,206.22,206.21,33.28850214]
[1757290367193,0.78,206.22,206.21,2.4390768]
[1757290370221,0.78,206.22,206.21,7.28850214]
[1757290372825,0.78,206.22,206.21,87.34977633]
[1757290376932,0.78,206.22,206.21,87.34907466]
[1757290378934,0.78,206.22,206.21,84.91069953]
[1757290379135,0.78,206.22,206.21,87.34907466]
[1757290379839,0.06,206.22,206.21,87.34907466]
[1757290380016,0.06,206.22,206.21,48.05833701]
[1757290380524,0.06,206.22,206.21,49.30890705]
[1757290382540,0.06,206.22,206.21,27.94057004]
[1757290382740,0.06,206.22,206.21,16.03396914]
[1757290382951,0.06,206.22,206.21,45.19396914]
[1757290383930,0.06,206.22,206.21,50.04339448]
[1757290385658,0.06,206.22,206.21,51.98387038]
[1757290388528,0.06,206.22,206.21,49.54549525]
[1757290388736,0.06,206.22,206.21,50.04339448]
[1757290390532,0.06,206.22,206.21,130.10466867]
[1757290391344,0.06,206.22,206.21,132.04514457]
[1757290391542,0.06,206.22,206.21,130.10466867]
[1757290394734,0.72,206.22,206.21,82.49964932]
[1757290395053,0.72,206.22,206.18,26.0]
[1757290395219,0.06,206.22,206.21,2.43837513]
[1757290395821,0.72,206.22,206.21,2.43837513]
[1757290398445,0.72,206.22,206.21,3.81055623]
[1757290398646,1e-08,206.22,206.21,111.54109277]
[1757290398830,0.06,206.28,206.26,42.75559401]
[1757290399025,0.06,206.28,206.26,88.68153144]
[1757290399240,0.06,206.28,206.26,89.35153144]
[1757290399436,0.06,206.28,206.26,91.29134861]
[1757290400940,0.06,206.28,206.26,96.13959839]
[1757290401350,0.06,206.28,206.26,95.65477342]
[1757290401553,0.06,206.28,206.26,53.35421719]
[1757290401739,0.06,206.28,206.26,95.65477342]
[1757290401943,0.01266709,206.28,206.27,51.04670647]
[1757290402833,0.01266709,206.28,206.27,55.8947212]
[1757290403836,0.01266709,206.28,206.27,135.95599539]
[1757290405434,0.01266709,206.28,206.27,137.89562444]
[1757290406460,0.01266709,206.28,206.27,175.02562444]
[1757290406752,0.01266709,206.28,206.27,175.69562444]
[1757290407456,0.67266709,206.28,206.27,167.40451198]
[1757290407632,0.67266709,206.28,206.27,171.21506821]
[1757290407828,0.67266709,206.28,206.27,133.41506821]
[1757290408031,0.67266709,206.28,206.27,159.41506821]
[1757290409346,0.01266709,206.28,206.27,159.41506821]
[1757290409646,0.67266709,206.28,206.27,163.22562444]
[1757290410043,0.01266709,206.28,206.27,159.41506821]
[1757290412060,0.67266709,206.28,206.27,159.41506821]
[1757290412260,0.01266709,206.28,206.27,159.41506821]
[1757290412449,0.67266709,206.28,206.27,154.56705348]
[1757290413964,0.01266709,206.28,206.27,135.28599539]
[1757290414259,0.01266709,206.28,206.27,163.22590664]
[1757290415555,0.01266709,206.28,206.27,159.41535041]
[1757290417062,0.70266709,206.28,206.27,159.41535041]
[1757290417259,0.01266709,206.28,206.27,159.41535041]
[1757290418854,0.70266709,206.28,206.27,159.41535041]
[1757290419152,0.01266709,206.28,206.27,159.41535041]
[1757290420160,0.01266709,206.28,206.27,163.22590664]
[1757290421263,0.01266709,206.28,206.27,159.41535041]
[1757290426370,0.01266709,206.28,206.27,159.44535041]
[1757290429067,0.70266709,206.28,206.27,1.96991125]
[1757290429267,0.70266709,206.28,206.27,29.16]
[1757290429454,0.01266709,206.28,206.27,46.56615024]
[1757290429769,0.01266709,206.28,206.27,72.56615024]
[1757290431249,0.01266709,206.28,206.27,77.41416497]
[1757290431971,0.70266709,206.28,206.26,3.81055623]
[1757290432177,0.69,206.27,206.24,0.03]
[1757290432668,4.50055623,206.27,206.24,0.03]
[1757290433672,4.84824978,206.26,206.24,0.03]
[1757290434174,0.69,206.25,206.24,0.03]
[1757290435968,5.53848484,206.25,206.24,0.03]
[1757290437558,43.79848484,206.25,206.24,0.03]
[1757290440768,9.34904107,206.25,206.24,0.03]
[1757290440970,47.54904107,206.25,206.24,0.03]
[1757290441173,51.3595973,206.25,206.24,0.03]
[1757290443084,54.92470583,206.25,206.24,0.03]
[1757290443455,54.90470583,206.25,206.24,0.03]
[1757290444084,51.3395973,206.25,206.24,0.03]
[1757290444865,54.90304922,206.25,206.24,0.03]
[1757290445366,51.3395973,206.25,206.24,0.03]
[1757290446883,51.3195973,206.25,206.24,0.03]
[1757290447082,13.1595973,206.25,206.24,0.03]
[1757290447281,51.2995973,206.25,206.24,0.03]
[1757290453294,26.0,206.23,206.22,1e-08]
[1757290453498,67.91055623,206.23,206.22,1e-08]
[1757290453697,73.41951128,206.23,206.22,1e-08]
[1757290453995,35.31951128,206.23,206.22,1e-08]
[1757290454197,73.39951128,206.23,206.22,1e-08]
[1757290454401,77.21006751,206.23,206.22,1e-08]
[1757290455576,39.13006751,206.23,206.22,1e-08]
[1757290455788,77.19006751,206.23,206.22,1e-08]
[1757290456908,39.13006751,206.23,206.22,1e-08]
[1757290457198,77.19006751,206.23,206.22,1e-08]
[1757290458312,39.13006751,206.23,206.22,1e-08]
[1757290458602,77.19006751,206.23,206.22,1e-08]
[1757290459572,77.25006751,206.23,206.22,1e-08]
[1757290459776,77.21006751,206.23,206.22,1e-08]
[1757290460404,75.84033349,206.23,206.22,1e-08]
[1757290460981,37.82033349,206.23,206.22,1e-08]
[1757290461180,75.84033349,206.23,206.22,1e-08]
[1757290465790,75.80033349,206.23,206.22,1e-08]
[1757290466202,37.82033349,206.23,206.22,1e-08]
[1757290466400,75.78033349,206.23,206.22,1e-08]
[1757290469187,37.82033349,206.23,206.22,1e-08]
[1757290469386,75.76033349,206.23,206.22,1e-08]
[1757290470203,79.31841853,206.23,206.22,1e-08]
[1757290479008,41.37841853,206.23,206.22,1e-08]
[1757290479213,79.23841853,206.23,206.22,1e-08]
[1757290479810,38.27759632,206.23,206.22,1e-08]
[1757290480016,74.7678623,206.23,206.22,1e-08]
[1757290481316,74.78824767,206.23,206.22,1e-08]
[1757290489411,75.45824767,206.23,206.22,1e-08]
[1757290493203,90.99554213,206.23,206.22,1e-08]
[1757290493404,100.75883097,206.23,206.22,1e-08]
[1757290495324,62.89883097,206.23,206.22,1e-08]
[1757290495510,90.99554213,206.23,206.22,1e-08]
[1757290496228,100.75883097,206.23,206.22,1e-08]
[1757290501430,160.70222277,206.23,206.14,0.03]
[1757290501621,2.44082221,206.15,206.14,0.03]
[1757290501821,43.87929262,206.15,206.14,0.03]
[1757290502134,45.82155876,206.15,206.14,0.03]
[1757290503722,10.37157331,206.15,206.14,0.03]
[1757290503922,48.23157331,206.15,206.14,0.03]
[1757290504117,50.67239552,206.15,206.14,0.03]
[1757290504528,10.37157331,206.15,206.14,0.03]
[1757290504725,4.85083676,206.15,206.14,0.7]
[1757290504927,42.71083676,206.15,206.14,0.7]
[1757290505845,4.85083676,206.15,206.14,0.7]
[1757290506137,42.71083676,206.15,206.14,0.7]
[1757290509642,4.84919018,206.22,206.14,3.14082221]
[1757290509846,46.2789523,206.21,206.18,2.44082221]
[1757290510143,0.06,206.23,206.14,0.03]
[1757290510144,0.06,206.23,206.2,2.44082221]
[1757290510322,37.86,206.22,206.21,0.68]
[1757290510729,37.86,206.22,206.21,3.12082221]
[1757290514746,0.06,206.23,206.21,3.12082221]
[1757290515044,0.06,206.23,206.18,18.44572496]
[1757290515341,37.86,206.22,206.18,98.54572496]
[1757290515544,37.86,206.22,206.19,0.68]
[1757290515722,37.86,206.22,206.2,0.68]
[1757290515926,37.86,206.22,206.21,0.68]
[1757290516244,37.86,206.22,206.21,3.12082221]
[1757290516448,37.86,206.22,206.19,4.90847672]
[1757290516749,37.86,206.22,206.2,2.44082221]
[1757290517450,37.86,206.22,206.2,3.12082221]
[1757290517631,37.86,206.22,206.2,2.44082221]
[1757290517942,37.86,206.22,206.19,14.55780663]
[1757290518144,42.70919406,206.22,206.19,14.55780663]
[1757290518323,42.70919406,206.22,206.18,82.54082221]
[1757290518522,42.70919406,206.22,206.19,2.44082221]
[1757290519829,43.42919406,206.22,206.18,97.7793353]
[1757290520142,43.42919406,206.22,206.18,80.78]
[1757290520349,0.72,206.21,206.16,14.55992623]
[1757290520530,2.44082221,206.18,206.14,0.03]
[1757290520759,37.84,206.17,206.14,0.03]
[1757290521733,42.69056865,206.17,206.14,0.03]
[1757290522955,43.41056865,206.17,206.14,0.03]
[1757290523448,42.69056865,206.17,206.14,0.03]
[1757290524253,42.69056865,206.17,206.14,3.84429979]
[1757290525943,42.69056865,206.17,206.14,0.03]
[1757290526254,0.72,206.16,206.14,0.03]
[1757290526757,4.85056865,206.17,206.14,0.03]
[1757290526930,42.69072575,206.16,206.14,0.03]
[1757290527453,0.72,206.15,206.14,0.03]
[1757290529230,5.57083676,206.15,206.14,0.03]
[1757290531050,5.5703662,206.17,206.14,0.03]
[1757290531241,37.84,206.16,206.14,0.03]
[1757290531449,0.72,206.15,206.14,0.03]
[1757290532955,5.57083676,206.15,206.14,0.03]
[1757290534758,43.41083676,206.15,206.14,0.03]
[1757290540769,4.85083676,206.15,206.14,0.03]
[1757290541060,37.84,206.15,206.14,4.54429979]
[1757290541238,37.84,206.15,206.14,34.38859958]
[1757290541441,37.84,206.15,206.14,8.38859958]
[1757290542265,37.84,206.15,206.14,7.68859958]
[1757290542567,38.53,206.15,206.14,0.03]
[1757290542938,43.38083676,206.15,206.14,0.03]
[1757290546465,0.06,206.17,206.14,4.54429979]
[1757290546652,0.06,206.17,206.14,0.73]
[1757290546653,37.84,206.16,206.14,0.73]
[1757290546856,37.84,206.16,206.15,4.51429979]
[1757290547366,37.84,206.16,206.15,3.81429979]
[1757290548872,0.06,206.17,206.15,3.81429979]
[1757290549059,37.84,206.16,206.15,3.81429979]
[1757290549752,38.53,206.16,206.14,0.03]
[1757290550866,4.85083676,206.15,206.14,0.03]
[1757290551256,5.54083676,206.15,206.14,0.03]
[1757290551449,9.35513655,206.15,206.14,0.03]
[1757290552376,5.54083676,206.15,206.14,0.03]
[1757290554753,9.35513655,206.15,206.14,0.03]
[1757290557059,5.54083676,206.15,206.14,0.03]
[1757290557680,42.69083676,206.15,206.14,0.03]
[1757290558179,43.38083676,206.15,206.14,0.03]
[1757290559050,46.95235603,206.15,206.14,0.03]
[1757290560988,9.11235603,206.15,206.14,0.03]
[1757290561158,46.95235603,206.15,206.14,0.03]
[1757290562679,50.77039324,206.15,206.14,0.03]
[1757290563185,46.95609345,206.15,206.14,0.03]
[1757290564286,50.77039324,206.15,206.14,0.03]
[1757290566581,50.77411389,206.15,206.14,0.03]
[1757290568684,52.71647434,206.15,206.14,0.03]
[1757290572091,13.59559401,206.14,206.13,1e-08]
[1757290572269,26.0,206.12,206.11,1e-08]
[1757290572591,71.21327713,206.12,206.11,1e-08]
[1757290572789,73.81592059,206.12,206.11,1e-08]
[1757290573170,73.81592059,206.12,206.07,0.03]
[1757290573375,29.81429979,206.09,206.07,0.03]
[1757290573574,71.21327713,206.09,206.07,0.03]
[1757290573778,71.87327713,206.09,206.07,0.03]
[1757290573973,71.87327713,206.09,206.05,0.03]
[1757290574295,3.81429979,206.07,206.05,0.03]
[1757290574590,71.21327713,206.07,206.05,0.03]
[1757290574796,73.81639243,206.07,206.05,0.03]
[1757290575471,78.66911237,206.07,206.05,0.03]
[1757290576389,52.66911237,206.07,206.05,0.03]
[1757290576786,52.66911237,206.07,206.05,1e-08]
[1757290576984,46.98887114,206.06,206.05,1e-08]
[1757290577495,49.59226966,206.06,206.05,1e-08]
[1757290577672,87.43226966,206.06,206.05,1e-08]
[1757290578400,61.43226966,206.06,206.05,1e-08]
[1757290579482,66.2852251,206.06,206.05,1e-08]
[1757290580812,66.2852251,206.06,206.03,1e-08]
[1757290580998,17.4098938,206.04,206.03,1e-08]
[1757290581179,84.80877579,206.04,206.03,1e-08]
[1757290581375,85.46877579,206.04,206.03,1e-08]
[1757290582278,84.10005858,206.04,206.03,1e-08]
[1757290583000,88.95348509,206.04,206.03,1e-08]
[1757290583481,60.50790251,206.04,206.03,1e-08]
[1757290583679,62.95348509,206.04,206.03,1e-08]
[1757290584718,65.39906767,206.04,206.03,1e-08]
[1757290587422,65.39978676,206.04,206.03,1e-08]
[1757290588109,65.38912413,206.04,206.03,1e-08]
[1757290589298,39.59559401,206.0,205.92,0.71]
[1757290589505,2.44630167,205.94,205.92,0.71]
[1757290589711,42.69601903,205.93,205.87,0.1]
[1757290590113,45.1423207,205.93,205.87,0.1]
[1757290590318,45.1423207,205.93,205.88,0.71]
[1757290590615,2.44630167,205.92,205.88,0.71]
[1757290590834,37.84,205.91,205.88,0.71]
[1757290591505,40.28630167,205.91,205.89,0.71]
[1757290591702,4.85672656,205.9,205.87,0.1]
[1757290591905,37.84,205.89,205.87,0.1]
[1757290592322,37.84,205.89,205.88,0.71]
[1757290594006,42.69696245,205.89,205.88,0.71]
[1757290594814,45.14326412,205.89,205.88,0.71]
[1757290596020,0.66,205.93,205.88,0.71]
[1757290596021,4.85676968,205.9,205.88,0.71]
[1757290596231,37.84,205.89,205.88,0.71]
[1757290596437,37.84,205.89,205.88,0.72]
[1757290598018,37.84,205.89,205.88,5.57719836]
[1757290598212,37.84,205.89,205.88,7.52116357]
[1757290598820,4.85582183,205.94,205.88,2.66396521]
[1757290599135,37.84,205.93,205.89,0.72]
[1757290599437,37.84,205.92,205.89,15.29973902]
[1757290599735,37.84,205.92,205.9,0.72]
[1757290601636,3.14630167,205.97,205.9,0.72]
[1757290601933,37.84,205.96,205.9,15.2990305]
[1757290602234,37.84,205.96,205.88,26.0]
[1757290602235,37.84,205.95,205.91,0.72]
[1757290602837,37.84,205.95,205.92,0.72]
[1757290603543,42.69561524,205.95,205.92,0.72]
[1757290606932,37.84,205.95,205.92,0.72]
[1757290607627,37.84,205.95,205.89,99.53585867]
[1757290607841,45.84185956,205.95,205.9,0.72]
[1757290608137,0.7,205.94,205.9,0.72]
[1757290608330,45.14185956,205.95,205.9,0.72]
[1757290608530,45.84185956,205.95,205.91,0.72]
[1757290609448,45.84185956,205.95,205.89,80.82]
[1757290609842,45.84185956,205.95,205.89,80.1]
[1757290610143,45.84185956,205.95,205.89,80.82]
[1757290610445,45.84185956,205.95,205.9,0.72]
[1757290610742,45.14185956,205.95,205.9,0.72]
[1757290610917,5.55585743,205.94,205.9,0.72]
[1757290612444,5.55585743,205.94,205.9,0.75]
[1757290614243,0.7,205.94,205.9,0.75]
[1757290615024,43.3956163,205.95,205.9,0.03]
[1757290615246,43.3956163,205.95,205.9,0.75]
[1757290615247,0.7,205.94,205.9,0.75]
[1757290615448,0.7,205.94,205.9,0.03]
[1757290615643,0.7,205.94,205.9,0.75]
[1757290616144,37.82,205.93,205.9,0.75]
[1757290616735,37.82,205.93,205.9,0.03]
[1757290617146,0.7,205.98,205.91,0.72]
[1757290617361,37.82,205.97,205.91,80.82]
[1757290617526,37.82,205.97,205.92,15.29619707]
[1757290617729,37.82,205.97,205.93,0.72]
[1757290618545,37.82,205.97,205.94,0.72]
[1757290620357,37.82,205.97,205.94,5.57569901]
[1757290620658,37.82,205.97,205.94,0.72]
[1757290621169,37.82,205.97,205.94,5.57576118]
[1757290621535,5.55442616,206.0,205.95,0.72]
[1757290621759,38.52,205.99,205.95,0.72]
[1757290622033,38.52,205.99,205.94,4.85576118]
[1757290622248,0.7,205.98,205.94,5.57576118]
[1757290622552,37.82,205.99,205.94,5.57576118]
[1757290622751,37.82,205.98,205.94,5.57576118]
[1757290623048,38.52,205.98,205.94,5.57576118]
[1757290625062,37.82,205.98,205.94,4.85576118]
[1757290625372,0.67,205.97,205.94,4.85576118]
[1757290625957,37.82,205.98,205.94,5.56576118]
[1757290626357,37.82,205.98,205.95,0.71]
[1757290627051,37.82,205.98,205.95,5.56550675]
[1757290627231,0.06,206.03,205.95,5.56550675]
[1757290627441,0.67,206.01,205.95,5.56550675]
[1757290627961,0.67,206.01,205.95,20.14028752]
[1757290628550,0.67,206.01,205.96,5.56515648]
[1757290628759,0.67,206.0,205.96,4.85515648]
[1757290628948,0.67,205.99,205.95,19.43027717]
[1757290629139,37.82,205.98,205.95,4.8554964]